fUSD/lending_fUSD_20241216
["ID","MTS","AMOUNT","RATE_DAILY","PERIOD"]
[345548746,1734330636912,-500.0,0.00021917,3]
[345548747,1734330636939,-500.0,0.00021917,3]
[345548748,1734330636963,-500.0,0.00021917,3]
[345548749,1734330636986,-500.0,0.00021917,3]
[345548750,1734330637009,-500.0,0.00021917,3]
[345548751,1734330637033,-500.0,0.00021917,3]
[345548752,1734330637062,-500.0,0.00021917,3]
[345548753,1734330637087,-500.0,0.00021917,3]
[345548754,1734330637112,-500.0,0.00021917,3]
[345548755,1734330637135,-500.0,0.00021917,3]
[345548756,1734330637160,-500.0,0.00021917,3]
[345548757,1734330637187,-500.0,0.00021917,3]
[345548758,1734330637209,-265.50184702,0.00021917,3]
[345548759,1734330637233,-500.0,0.00021917,3]
[345548760,1734330637256,-500.0,0.00021917,3]
[345548761,1734330637279,-500.0,0.00021917,3]
[345548762,1734330637302,-500.0,0.00021917,3]
[345548763,1734330637325,-514.53711869,0.00021917,3]
[345548764,1734330637348,-500.0,0.00021917,3]
[345548765,1734330637371,-500.0,0.00021917,3]
[345548766,1734330637394,-500.0,0.00021917,3]
[345548767,1734330637417,-500.0,0.00021917,3]
[345548769,1734330637444,-500.0,0.00021917,3]
[345548770,1734330637467,-500.0,0.00021917,3]
[345548771,1734330637489,-500.0,0.00021917,3]
[345548772,1734330637516,-331.22,0.00021917,3]
[345548773,1734330637538,-500.0,0.00021917,3]
[345548774,1734330637561,-500.0,0.00021917,3]
[345548775,1734330637584,-500.0,0.00021917,3]
[345548776,1734330637608,-204.16195255,0.00021917,3]
[345548777,1734330637632,-500.0,0.00021917,3]
[345548778,1734330637653,-501.70642621,0.00021917,3]
[345548779,1734330637685,-441.24,0.00021917,3]
[345548780,1734330637708,-500.0,0.00021917,3]
[345548781,1734330637730,-500.0,0.00021917,3]
[345548782,1734330637752,-500.0,0.00021917,3]
[345548783,1734330637776,-1000.0,0.00021917,3]
[345548784,1734330637800,-500.0,0.00021917,3]
[345548785,1734330637825,-500.0,0.00021917,3]
[345548786,1734330637847,-762.72,0.00021962,7]
[345548787,1734330637870,-762.72,0.00021962,7]
[345548788,1734330637893,-762.72,0.00021962,7]
[345548789,1734330637917,-762.72,0.00021962,7]
[345548790,1734330637943,-263.19643163,0.00021973,2]
[345548791,1734330637968,-500.0,0.00021998,3]
[345548792,1734330637993,-500.0,0.00021998,3]
[345548793,1734330638018,-500.0,0.00021998,3]
[345548794,1734330638043,-997.83,0.00021998,3]
[345548795,1734330638069,-997.83,0.00021998,3]
[345548796,1734330638092,-997.83,0.00021998,3]
[345548797,1734330638118,-651.89,0.00021998,3]
[345548798,1734330638141,-651.89,0.00021998,3]
[345548799,1734330638163,-651.89,0.00021998,3]
[345548800,1734330638188,-500.0,0.00021998,3]
[345548803,1734330638211,-500.0,0.00021998,3]
[345548804,1734330638234,-340.76,0.00021998,3]
[345548805,1734330638257,-500.0,0.00021998,3]
[345548806,1734330638280,-500.0,0.00021998,3]
[345548807,1734330638302,-569.28,0.00021998,3]
[345548808,1734330638325,-259.06316638,0.00021998,3]
[345548811,1734330638349,-500.0,0.00021998,3]
[345548814,1734330638373,-500.0,0.00021998,3]
[345548818,1734330638396,-635.44,0.00021998,3]
[345548821,1734330638420,-500.0,0.00021998,3]
[345548825,1734330638445,-500.0,0.00021998,3]
[345548828,1734330638467,-500.0,0.00021998,3]
[345548832,1734330638490,-500.0,0.00021998,3]
[345548835,1734330638512,-500.0,0.00021998,3]
[345548839,1734330638536,-189.76,0.00021998,3]
[345548842,1734330638560,-500.0,0.00021999,3]
[345548846,1734330638583,-500.0,0.00021999,3]
[345548849,1734330638605,-500.0,0.00021999,3]
[345548852,1734330638629,-500.0,0.00021999,3]
[345548856,1734330638652,-500.0,0.00021999,3]
[345548859,1734330638675,-500.0,0.00021999,3]
[345548863,1734330638697,-500.0,0.00021999,3]
[345548866,1734330638720,-500.0,0.00021999,3]
[345548870,1734330638743,-500.0,0.00021999,3]
[345548873,1734330638765,-500.0,0.00021999,3]
[345548876,1734330638787,-513.51611579,0.00021999,3]
[345548915,1734330639222,-303.30463958,0.00022027,2]
[345548917,1734330639233,-1547.38458717,0.00022027,2]
[345548919,1734330639242,-263.19643163,0.00022055,2]
[345548921,1734330639251,-578.45747987,0.00022075,2]
[345548923,1734330639261,-1538.64,0.00022137,2]
[345548925,1734330639270,-303.30463958,0.00022151,2]
[345548927,1734330639278,-1547.38458717,0.00022151,2]
[345548929,1734330639287,-1281.70227189,0.00022163,2]
[345548931,1734330639297,-263.19643163,0.00022164,2]
[345548934,1734330639310,-164.72018812,0.000222,2]
[345548936,1734330639319,-151.0,0.00022219,7]
[345548938,1734330639328,-652.99377898,0.00022225,2]
[345548940,1734330639337,-3252.912,0.00022233,2]
[345548942,1734330639347,-193.301,0.00022233,2]
[345548944,1734330639357,-151.0,0.00022233,7]
[345548946,1734330639366,-762.72,0.00022235,7]
[345548948,1734330639376,-762.72,0.00022235,7]
[345548950,1734330639385,-153.0,0.00022235,2]
[345548952,1734330639394,-153.0,0.00022235,2]
[345548954,1734330639403,-153.0,0.00022235,2]
[345548956,1734330639412,-153.0,0.00022235,2]
[345548958,1734330639421,-153.0,0.00022235,2]
[345548960,1734330639437,-153.0,0.00022235,2]
[345548963,1734330639446,-153.0,0.00022235,2]
[345548965,1734330639455,-153.0,0.00022235,2]
[345548967,1734330639464,-153.0,0.00022235,2]
[345548969,1734330639473,-153.0,0.00022235,2]
[345548971,1734330639482,-153.0,0.00022235,2]
[345548973,1734330639491,-153.0,0.00022235,2]
[345548975,1734330639500,-164.0,0.00022235,2]
[345548977,1734330639510,-263.19643163,0.00022274,2]
[345548979,1734330639519,-303.30463958,0.00022276,2]
[345548981,1734330639528,-1547.38458717,0.00022276,2]
[345548983,1734330639537,-150.0,0.00022279,2]
[345548985,1734330639547,-150.0,0.00022294,2]
[345548987,1734330639556,-210.12461969,0.000223,2]
[345548989,1734330639565,-500.0,0.00022312,2]
[345548991,1734330639574,-500.0,0.00022317,2]
[345548993,1734330639584,-150.0,0.00022326,2]
[345548995,1734330639593,-578.45747987,0.00022331,2]
[345548997,1734330639602,-511.66150716,0.00022334,2]
[345548999,1734330639611,-720.857435,0.00022339,2]
[345549001,1734330639620,-49229.77361274,0.0002234,2]
[345549003,1734330639630,-511.66150716,0.0002234,2]
[345549005,1734330639640,-4409.9377591,0.00022341,2]
[345549007,1734330639649,-742.83383399,0.00022341,2]
[345549009,1734330639659,-1016.56069723,0.00022342,2]
[345549012,1734330639668,-49229.77361274,0.00022342,2]
[345549014,1734330639678,-4409.9377591,0.00022349,2]
[345549017,1734330639687,-200.0,0.00022349,2]
[345549020,1734330639697,-742.83383399,0.0002235,2]
[345549024,1734330639706,-1016.56069723,0.00022353,2]
[345549027,1734330639716,-720.857435,0.00022357,2]
[345549030,1734330639726,-150.0,0.00022358,2]
[345549033,1734330639735,-742.83383399,0.00022358,2]
[345549036,1734330639744,-49229.77361274,0.00022362,2]
[345549039,1734330639754,-49229.77361274,0.00022363,2]
[345549042,1734330639763,-511.66150716,0.00022363,2]
[345549045,1734330639772,-150.0,0.00022363,2]
[345549048,1734330639781,-742.83383399,0.00022365,2]
[345549051,1734330639790,-1016.56069723,0.00022365,2]
[345549054,1734330639800,-1016.56069723,0.00022369,2]
[345549057,1734330639809,-720.857435,0.00022369,2]
[345549060,1734330639818,-200.0,0.0002237,2]
[345549063,1734330639827,-511.66150716,0.00022371,2]
[345549065,1734330639836,-200.0,0.00022372,2]
[345549068,1734330639845,-4409.9377591,0.00022373,2]
[345549071,1734330639854,-1016.56069723,0.00022373,2]
[345549073,1734330639863,-150.0,0.00022375,2]
[345549076,1734330639872,-3882.0,0.00022375,2]
[345549079,1734330639882,-434.889,0.00022375,2]
[345549082,1734330639892,-200.0,0.00022375,2]
[345549084,1734330639901,-4409.9377591,0.00022376,2]
[345549087,1734330639910,-4409.9377591,0.00022376,2]
[345549090,1734330639919,-1500.0,0.00022378,2]
[345549093,1734330639930,-1500.0,0.00022379,2]
[345549095,1734330639940,-720.857435,0.00022381,2]
[345549098,1734330639949,-3625.751,0.00022381,2]
[345549101,1734330639958,-511.66150716,0.00022381,2]
[345549103,1734330639968,-511.66150716,0.00022383,2]
[345549106,1734330639978,-800.0,0.00022384,2]
[345549108,1734330639986,-742.83383399,0.00022387,2]
[345549111,1734330639996,-49229.77361274,0.00022393,2]
[345549113,1734330640005,-1016.56069723,0.00022395,2]
[345549116,1734330640015,-720.857435,0.00022395,2]
[345549119,1734330640024,-742.83383399,0.00022395,2]
[345549121,1734330640033,-4409.9377591,0.00022396,2]
[345549124,1734330640042,-150.0,0.00022397,2]
[345549127,1734330640051,-1500.0,0.00022398,2]
[345549129,1734330640061,-49229.77361274,0.00022398,2]
[345549132,1734330640072,-4830.9493,0.00022399,2]
[345549134,1734330640081,-1000.0,0.00022399,2]
[345549136,1734330640090,-330.94,0.00022399,3]
[345549138,1734330640100,-500.0,0.00022399,3]
[345549139,1734330640110,-500.0,0.00022399,3]
[345549141,1734330640119,-668.68,0.00022399,3]
[345549143,1734330640128,-500.0,0.00022399,2]
[345549145,1734330640138,-500.0,0.00022399,3]
[345549146,1734330640148,-500.0,0.00022399,3]
[345549148,1734330640157,-215.66,0.00022399,3]
[345549150,1734330640167,-500.0,0.00022399,3]
[345549152,1734330640177,-500.0,0.00022399,3]
[345549153,1734330640187,-500.0,0.00022399,3]
[345549155,1734330640196,-500.0,0.00022399,3]
[345549157,1734330640206,-500.0,0.00022399,3]
[345549159,1734330640215,-500.0,0.00022399,3]
[345549161,1734330640225,-179.96240534,0.00022399,3]
[345549162,1734330640236,-500.0,0.00022399,3]
[345549164,1734330640245,-500.0,0.00022399,3]
[345549166,1734330640256,-500.0,0.00022399,3]
[345549168,1734330640267,-349.1915356,0.00022399,3]
[345549169,1734330640277,-500.0,0.00022399,3]
[345549171,1734330640287,-500.0,0.00022399,3]
[345549173,1734330640296,-500.0,0.00022399,3]
[345549175,1734330640306,-500.0,0.00022399,3]
[345549177,1734330640315,-500.0,0.00022399,3]
[345549179,1734330640325,-501.42933698,0.00022399,3]
[345549180,1734330640334,-500.0,0.00022399,3]
[345549182,1734330640344,-500.0,0.00022399,3]
[345549184,1734330640354,-500.0,0.00022399,3]
[345549186,1734330640364,-500.0,0.00022399,3]
[345549188,1734330640373,-500.0,0.00022399,3]
[345549189,1734330640383,-500.0,0.00022399,3]
[345549191,1734330640392,-500.0,0.00022399,3]
[345549193,1734330640402,-500.0,0.00022399,3]
[345549195,1734330640411,-500.0,0.00022399,3]
[345549197,1734330640421,-500.0,0.00022399,3]
[345549199,1734330640432,-500.0,0.00022399,3]
[345549200,1734330640441,-500.0,0.00022399,3]
[345549202,1734330640451,-500.0,0.00022399,3]
[345549204,1734330640460,-506.65688883,0.00022399,3]
[345549206,1734330640470,-500.0,0.00022399,3]
[345549208,1734330640480,-500.0,0.00022399,3]
[345549209,1734330640489,-500.0,0.00022399,3]
[345549211,1734330640499,-500.0,0.00022399,3]
[345549213,1734330640508,-500.0,0.00022399,3]
[345549215,1734330640517,-500.0,0.00022399,3]
[345549217,1734330640527,-500.0,0.00022399,3]
[345549218,1734330640537,-500.0,0.00022399,3]
[345549220,1734330640547,-500.0,0.00022399,3]
[345549222,1734330640557,-500.76051655,0.00022399,3]
[345549224,1734330640567,-500.0,0.00022399,3]
[345549226,1734330640577,-500.0,0.00022399,3]
[345549227,1734330640587,-500.0,0.00022399,3]
[345549229,1734330640596,-500.0,0.00022399,3]
[345549231,1734330640606,-500.0,0.00022399,3]
[345549233,1734330640615,-502.72559126,0.00022399,3]
[345549235,1734330640624,-500.0,0.00022399,3]
[345549237,1734330640634,-259.37175383,0.00022399,3]
[345549238,1734330640645,-500.0,0.00022399,3]
[345549240,1734330640654,-500.0,0.00022399,3]
[345549242,1734330640664,-500.0,0.00022399,3]
[345549244,1734330640675,-470.51,0.00022399,3]
[345549246,1734330640685,-500.0,0.00022399,3]
[345549248,1734330640695,-500.0,0.00022399,3]
[345549249,1734330640705,-504.73034376,0.00022399,3]
[345549251,1734330640715,-500.0,0.00022399,3]
[345549253,1734330640725,-500.0,0.00022399,3]
[345549255,1734330640735,-504.00709261,0.00022399,3]
[345549257,1734330640744,-500.0,0.00022399,3]
[345549259,1734330640754,-502.65868812,0.00022399,3]
[345549261,1734330640764,-500.0,0.00022399,3]
[345549263,1734330640774,-502.00289396,0.00022399,3]
[345549265,1734330640783,-500.0,0.00022399,3]
[345549267,1734330640793,-502.24907009,0.00022399,3]
[345549269,1734330640803,-500.0,0.00022399,3]
[345549271,1734330640812,-500.0,0.00022399,3]
[345549273,1734330640822,-500.0,0.00022399,3]
[345549275,1734330640831,-500.0,0.00022399,3]
[345549276,1734330640840,-500.0,0.00022399,3]
[345549277,1734330640850,-500.0,0.00022399,3]
[345549278,1734330640860,-502.19338532,0.00022399,3]
[345549279,1734330640870,-500.0,0.00022399,3]
[345549280,1734330640880,-500.0,0.00022399,3]
[345549281,1734330640890,-1000.0,0.00022399,30]
[345549282,1734330640899,-500.0,0.00022399,3]
[345549283,1734330640909,-503.68970729,0.00022399,3]
[345549284,1734330640918,-188.982717,0.00022399,7]
[345549285,1734330640931,-500.0,0.00022399,3]
[345549286,1734330640940,-500.0,0.00022399,3]
[345549288,1734330640950,-151.0,0.00022399,7]
[345549289,1734330640959,-500.0,0.00022399,3]
[345549291,1734330640969,-500.0,0.00022399,3]
[345549293,1734330640979,-500.0,0.00022399,3]
[345549295,1734330640988,-502.23953032,0.00022399,3]
[345549297,1734330640998,-505.15349114,0.00022399,3]
[345549299,1734330641008,-634.55,0.00022399,3]
[345549301,1734330641017,-151.0,0.00022399,7]
[345549303,1734330641026,-500.0,0.00022399,3]
[345549305,1734330641036,-480.0,0.00022399,3]
[345549307,1734330641045,-500.0,0.00022399,3]
[345549309,1734330641056,-151.0,0.00022399,7]
[345549311,1734330641072,-500.0,0.00022399,3]
[345549313,1734330641082,-500.0,0.00022399,3]
[345549315,1734330641091,-480.0,0.00022399,3]
[345549317,1734330641103,-500.0,0.00022399,3]
[345549319,1734330641112,-500.0,0.00022399,3]
[345549321,1734330641122,-500.0,0.00022399,3]
[345549323,1734330641133,-504.64572839,0.00022399,3]
[345549325,1734330641151,-504.15544264,0.00022399,3]
[345549327,1734330641161,-999.0,0.00022399,7]
[345549329,1734330641170,-999.0,0.00022399,7]
[345549331,1734330641182,-999.0,0.00022399,7]
[345549333,1734330641192,-999.0,0.00022399,7]
[345549335,1734330641202,-999.0,0.00022399,7]
[345549337,1734330641212,-999.0,0.00022399,7]
[345549339,1734330641221,-999.0,0.00022399,7]
[345549341,1734330641231,-999.0,0.00022399,7]
[345549343,1734330641240,-999.0,0.00022399,7]
[345549345,1734330641250,-999.0,0.00022399,7]
[345549347,1734330641259,-999.0,0.00022399,7]
[345549349,1734330641268,-999.0,0.00022399,7]
[345549351,1734330641279,-999.0,0.00022399,7]
[345549353,1734330641288,-999.0,0.00022399,7]
[345549355,1734330641298,-999.0,0.00022399,7]
[345549357,1734330641307,-999.0,0.00022399,7]
[345549359,1734330641316,-999.0,0.00022399,7]
[345549361,1734330641326,-999.0,0.00022399,7]
[345549363,1734330641335,-999.0,0.00022399,7]
[345549365,1734330641344,-557.13,0.00022399,3]
[345549367,1734330641354,-999.0,0.00022399,7]
[345549369,1734330641363,-1037.03337384,0.00022399,7]
[345549371,1734330641373,-500.0,0.00022399,3]
[345549373,1734330641382,-500.0,0.00022399,3]
[345549375,1734330641391,-500.0,0.00022399,3]
[345549377,1734330641400,-500.96456951,0.00022399,3]
[345549379,1734330641409,-500.0,0.00022399,3]
[345549381,1734330641418,-500.0,0.00022399,3]
[345549383,1734330641429,-151.0,0.00022399,7]
[345549385,1734330641446,-501.2381257,0.00022399,3]
[345549387,1734330641455,-500.0,0.00022399,3]
[345549389,1734330641464,-500.70924674,0.00022399,3]
[345549391,1734330641473,-500.97415195,0.00022399,3]
[345549393,1734330641482,-500.0,0.00022399,3]
[345549395,1734330641491,-500.0,0.00022399,3]
[345549397,1734330641500,-500.98448351,0.00022399,3]
[345549399,1734330641509,-565.77776041,0.00022399,3]
[345549401,1734330641519,-514.19297063,0.00022399,3]
[345549403,1734330641528,-500.40315173,0.00022399,3]
[345549405,1734330641538,-500.0,0.00022399,3]
[345549407,1734330641547,-500.0,0.00022399,3]
[345549409,1734330641558,-501.09477373,0.00022399,3]
[345549411,1734330641567,-500.0,0.00022399,3]
[345549413,1734330641576,-501.0840155,0.00022399,3]
[345549415,1734330641586,-500.0,0.00022399,3]
[345549417,1734330641595,-499.35049193,0.00022399,3]
[345549419,1734330641604,-500.0,0.00022399,3]
[345549421,1734330641613,-501.95233685,0.00022399,3]
[345549423,1734330641623,-500.0,0.00022399,3]
[345549425,1734330641632,-500.0,0.00022399,3]
[345549427,1734330641642,-500.86333916,0.00022399,3]
[345549429,1734330641651,-587.39087274,0.00022399,3]
[345549431,1734330641661,-500.0,0.00022399,3]
[345549433,1734330641670,-500.0,0.00022399,3]
[345549435,1734330641685,-502.35263021,0.00022399,3]
[345549437,1734330641694,-500.0,0.00022399,3]
[345549439,1734330641703,-500.0,0.00022399,3]
[345549441,1734330641712,-151.0,0.00022399,7]
[345549443,1734330641722,-168.652994,0.00022399,7]
[345549445,1734330641731,-500.0,0.00022399,3]
[345549447,1734330641740,-151.0,0.00022399,7]
[345549449,1734330641750,-151.0,0.00022399,7]
[345549451,1734330641758,-500.0,0.00022399,3]
[345549453,1734330641768,-500.0,0.00022399,3]
[345549455,1734330641777,-151.0,0.00022399,7]
[345549457,1734330641787,-500.0,0.00022399,3]
[345549459,1734330641796,-500.0,0.00022399,3]
[345549461,1734330641805,-155.018763,0.00022399,7]
[345549463,1734330641815,-500.0,0.00022399,3]
[345549465,1734330641824,-152.33096,0.00022399,7]
[345549467,1734330641834,-151.0,0.00022399,7]
[345549469,1734330641843,-500.0,0.00022399,3]
[345549471,1734330641853,-151.0,0.00022399,7]
[345549472,1734330641862,-151.0,0.00022399,7]
[345549474,1734330641871,-151.0,0.00022399,7]
[345549476,1734330641880,-151.0,0.00022399,7]
[345549478,1734330641889,-151.0,0.00022399,7]
[345549480,1734330641898,-152.98606,0.00022399,7]
[345549482,1734330641907,-720.857435,0.000224,2]
[345549484,1734330641917,-100038.5499,0.000224,2]
[345549486,1734330641930,-173.93363665,0.000224,2]
[345549488,1734330641939,-151.0,0.000224,7]
[345549490,1734330641948,-152.168172,0.000224,7]
[345549492,1734330641957,-179.787431,0.000224,2]
[345549494,1734330641966,-150.0,0.000224,2]
[345549496,1734330641975,-151.0,0.000224,7]
[345549498,1734330641984,-151.0,0.000224,7]
[345549500,1734330641993,-303.30463958,0.000224,2]
[345549502,1734330642002,-151.0,0.000224,7]
[345549504,1734330642011,-1547.38458717,0.000224,2]
[345549506,1734330642020,-407.2,0.000224,31]
[345549508,1734330642029,-407.2,0.000224,31]
[345549510,1734330642038,-407.2,0.000224,31]
[345549512,1734330642047,-407.2,0.000224,31]
[345549514,1734330642056,-407.2,0.000224,31]
[345549516,1734330642068,-407.2,0.000224,31]
[345549518,1734330642077,-407.2,0.000224,31]
[345549520,1734330642086,-407.2,0.000224,31]
[345549522,1734330642096,-407.2,0.000224,31]
[345549524,1734330642105,-407.2,0.000224,31]
[345549526,1734330642114,-407.2,0.000224,31]
[345549527,1734330642123,-407.2,0.000224,31]
[345549529,1734330642132,-407.2,0.000224,31]
[345549531,1734330642142,-407.2,0.000224,31]
[345549533,1734330642151,-407.2,0.000224,31]
[345549535,1734330642160,-407.2,0.000224,31]
[345549537,1734330642169,-151.0,0.000224,7]
[345549539,1734330642182,-4981.66864202,0.000224,2]
[345549541,1734330642191,-271.01521218,0.000224,2]
[345549543,1734330642200,-151.0,0.000224,7]
[345549545,1734330642209,-877.1831458,0.000224,2]
[345549547,1734330642219,-824.41,0.00022418,2]
[345549549,1734330642228,-176.5,0.00022425,2]
[345549551,1734330642238,-1500.0,0.00022438,2]
[345549567,1734330642378,-200.0,0.00022441,2]
[345549569,1734330642388,-1500.0,0.00022457,2]
[345549572,1734330642398,-200.0,0.00022461,2]
[345549574,1734330642407,-200.62,0.00022461,2]
[345549575,1734330642416,-1500.0,0.00022476,2]
[345549578,1734330642429,-150.0,0.00022479,2]
[345549579,1734330642439,-150.0,0.00022481,2]
[345549581,1734330642448,-1500.0,0.00022486,2]
[345549583,1734330642457,-500.0,0.00022487,3]
[345549585,1734330642467,-997.83,0.00022487,3]
[345549587,1734330642476,-651.89,0.00022487,3]
[345549589,1734330642486,-500.0,0.00022487,3]
[345549592,1734330642495,-500.0,0.00022488,3]
[345549593,1734330642504,-500.0,0.00022488,3]
[345549596,1734330642514,-500.0,0.00022488,3]
[345549598,1734330642523,-500.0,0.00022488,3]
[345549600,1734330642532,-500.0,0.00022488,3]
[345549601,1734330642541,-500.0,0.00022488,3]
[345549603,1734330642551,-2133.3370669,0.00022493,2]
[345549605,1734330642560,-5708.155343,0.00022493,2]
[345549607,1734330642569,-222.121615,0.00022494,2]
[345549609,1734330642579,-222.121615,0.00022494,4]
[345549611,1734330642588,-222.121615,0.00022494,8]
[345549614,1734330642597,-222.121615,0.00022495,8]
[345549618,1734330642607,-222.121615,0.00022495,4]
[345549620,1734330642617,-222.121615,0.00022495,2]
[345549623,1734330642626,-222.121615,0.00022496,2]
[345549626,1734330642635,-222.121615,0.00022496,4]
[345549629,1734330642643,-222.121615,0.00022496,8]
[345549631,1734330642652,-222.121615,0.00022497,8]
[345549633,1734330642661,-222.121615,0.00022497,4]
[345549635,1734330642671,-222.121615,0.00022497,2]
[345549637,1734330642683,-400.0,0.00022498,4]
[345549639,1734330642692,-2000.0,0.00022498,2]
[345549641,1734330642701,-200.0,0.00022498,2]
[345549643,1734330642709,-151.196411,0.00022498,7]
[345549645,1734330642718,-153.639561,0.00022498,7]
[345549647,1734330642727,-152.204866,0.00022498,7]
[345549649,1734330642736,-500.0,0.00022498,3]
[345549651,1734330642746,-500.0,0.00022498,3]
[345549653,1734330642754,-500.0,0.00022498,3]
[345549655,1734330642763,-500.0,0.00022498,3]
[345549657,1734330642771,-668.68,0.00022498,3]
[345549659,1734330642780,-668.68,0.00022498,3]
[345549661,1734330642789,-668.68,0.00022498,3]
[345549664,1734330642798,-500.0,0.00022498,3]
[345549668,1734330642807,-500.0,0.00022498,3]
[345549669,1734330642817,-500.0,0.00022498,3]
[345549672,1734330642826,-536.26045271,0.00022498,3]
[345549673,1734330642835,-500.0,0.00022498,3]
[345549675,1734330642844,-500.0,0.00022498,3]
[345549677,1734330642853,-500.0,0.00022498,3]
[345549679,1734330642862,-180.02,0.00022498,3]
[345549681,1734330642871,-447.56885635,0.00022498,3]
[345549683,1734330642881,-500.0,0.00022498,3]
[345549685,1734330642890,-500.0,0.00022498,3]
[345549687,1734330642899,-500.0,0.00022498,3]
[345549689,1734330642908,-500.0,0.00022498,3]
[345549691,1734330642917,-500.0,0.00022498,3]
[345549693,1734330642928,-384.3,0.00022498,3]
[345549695,1734330642938,-500.0,0.00022498,3]
[345549697,1734330642947,-500.0,0.00022498,3]
[345549699,1734330642955,-500.0,0.00022498,3]
[345549701,1734330642964,-500.0,0.00022498,3]
[345549703,1734330642973,-500.0,0.00022498,3]
[345549705,1734330642982,-193.5346444,0.00022498,3]
[345549707,1734330642991,-500.0,0.00022498,3]
[345549709,1734330643000,-500.0,0.00022498,3]
[345549711,1734330643010,-500.0,0.00022498,3]
[345549713,1734330643022,-500.0,0.00022498,3]
[345549715,1734330643037,-500.0,0.00022498,3]
[345549717,1734330643046,-501.23271514,0.00022498,3]
[345549719,1734330643055,-500.0,0.00022498,3]
[345549721,1734330643066,-500.0,0.00022498,3]
[345549723,1734330643075,-500.0,0.00022498,3]
[345549725,1734330643084,-500.0,0.00022498,3]
[345549727,1734330643093,-222.121615,0.00022498,2]
[345549729,1734330643102,-500.0,0.00022498,3]
[345549731,1734330643114,-500.0,0.00022498,3]
[345549733,1734330643123,-500.0,0.00022498,3]
[345549735,1734330643132,-222.121615,0.00022498,4]
[345549737,1734330643142,-601.8403897,0.00022498,3]
[345549739,1734330643151,-222.121615,0.00022498,8]
[345549741,1734330643162,-401.45,0.00022498,3]
[345549743,1734330643171,-500.0,0.00022498,3]
[345549745,1734330643183,-500.0,0.00022498,3]
[345549747,1734330643192,-547.60775631,0.00022498,3]
[345549749,1734330643202,-500.0,0.00022498,3]
[345549751,1734330643211,-500.0,0.00022498,3]
[345549753,1734330643220,-500.0,0.00022498,3]
[345549754,1734330643230,-500.0,0.00022498,3]
[345549757,1734330643240,-500.0,0.00022498,3]
[345549758,1734330643249,-500.0,0.00022498,3]
[345549760,1734330643258,-500.0,0.00022498,3]
[345549762,1734330643267,-500.0,0.00022498,3]
[345549764,1734330643277,-500.0,0.00022498,3]
[345549766,1734330643286,-500.0,0.00022498,3]
[345549769,1734330643295,-275.06831918,0.00022498,3]
[345549772,1734330643304,-500.0,0.00022498,3]
[345549775,1734330643313,-500.0,0.00022498,3]
[345549778,1734330643322,-500.0,0.00022498,3]
[345549780,1734330643331,-500.0,0.00022498,3]
[345549782,1734330643341,-522.04000041,0.00022498,3]
[345549784,1734330643350,-500.0,0.00022498,3]
[345549786,1734330643359,-1000.0,0.00022498,30]
[345549787,1734330643368,-1000.0,0.00022498,30]